Cogmind - Beta 15 @@@ ROGUE MODE // 2025.05.25 @ 01:04:52 Player: Wyvric Result: Destroyed by YF-INJ(R) with Subdweller Machine Gun Performance ------------- Evolutions (0) 0 Regions Visited (2) 400 Robots Destroyed (19) 95 Value Destroyed (564) 564 Prototype IDs (0) 0 Alien Tech Used (0) 0 Bonus (0) 0 TOTAL SCORE: 1059 Bonus ------- None Cogmind --------- Core Integrity 0/250 Matter 297/300 Energy 123/125 System Corruption 0% Temperature Cool (0) Movement Treading (240) Ox1 Location -10/Subcaves Parts ------- > --- POWER (1) -------- Light Ion Engine > --- PROPULSION (2) --- Light Treads > --- UTILITY (2) ------ Large Storage Unit Weapon Shielding > --- WEAPON (2) ------- Light Assault Rifle Light Assault Rifle > --- INVENTORY (15) --- Light Treads Improved Treads Improved Treads Improved Treads Compact Wheel Compact Wheel Improved Heat Sink Huge Storage Unit Seismic Detector Medium Laser Beam Cannon Light Assault Rifle Flail Flail Peak State ------------ > --- POWER ------------ Light Nuclear Core > --- PROPULSION ------- Light Treads Improved Treads > --- UTILITY ---------- Large Storage Unit Weapon Shielding > --- WEAPON ----------- Flail Flail > --- INVENTORY -------- Light Ion Engine Improved Treads Improved Treads Improved Treads Compact Wheel Compact Wheel Improved Heat Sink Huge Storage Unit Seismic Detector Medium Laser Beam Cannon Light Assault Rifle Light Assault Rifle Flail [Rating: 14] Favorites ----------- Power Light Nuclear Core Engine Light Ion Engine Power Core Light Nuclear Core Propulsion Light Treads Treads Light Treads Utility Large Storage Unit Device Seismic Detector Storage Large Storage Unit Protection Weapon Shielding Weapon Light Assault Rifle Energy Gun Medium Laser Energy Cannon Beam Cannon Ballistic Gun Light Assault Rifle Impact Weapon Flail Build | -11 -10 -10 ------- Run | Yrd Mat Sub Slots Evolved . | . . . Power . | . . . Propulsion . | . . . Utility . | . . . Weapon . | . . . Parts Attached 18 | 7 10 1 Power 3 | 1 1 1 Engine 2 | 1 . 1 Core 1 | . 1 . Reactor . | . . . Propulsion 4 | 2 2 . Treads 4 | 2 2 . Leg . | . . . Wheel . | . . . Hover . | . . . Flight . | . . . Utility 5 | 2 3 . Device 1 | 1 . . Storage 3 | 1 2 . Processor . | . . . Hackware . | . . . Protection 1 | . 1 . Artifact . | . . . Weapon 6 | 2 4 . Energy Gun 1 | 1 . . Energy Cannon 1 | . 1 . Ballistic Gun 2 | 1 1 . Ballistic Cannon . | . . . Launcher . | . . . Special Weapon . | . . . Impact Weapon 2 | . 2 . Slashing Weapon . | . . . Piercing Weapon . | . . . Special Melee Weapon . | . . . Unidentified Prototypes . | . . . Parts Lost 3 | . 1 2 Power 1 | . . 1 Propulsion 2 | . 1 1 Utility . | . . . Weapon . | . . . Highest Loss Streak 1 | . 1 1 To Critical Strikes . | . . . Average Backups 13 | 4 13 14 Power 1 | . 1 . Propulsion 5 | 2 5 6 Utility 3 | . 3 3 Weapon 2 | . 2 5 Tool/Special . | . . . Unused Backups 12 | . 4 8 Power . | . . . Propulsion 10 | . 4 6 Utility 1 | . . 1 Weapon 1 | . . 1 Tool/Special . | . . . Average Slot Usage (%) 91 | . 90 97 Engine 1 | . . 3 Core 12 | . 12 8 Treads 27 | . 27 28 Storage 14 | . 14 14 Protection 5 | . 5 14 Energy Gun 3 | . 4 . Energy Cannon 4 | . 4 . Ballistic Gun 10 | . 10 11 Impact Weapon 9 | . 8 16 Peak Build Rating 14 | 7 14 14 Average Rating 10 | 5 10 12 On Entrance 7 | . 7 14 Naked Turns . | . . . Heaviest Build 30 | 12 30 30 Greatest Support 43 | 40 43 43 Greatest Overweight (x) 1 | . 1 . Average Overweight (x) . | . . . Largest Inventory Capacity 25 | 8 25 15 Average Capacity 14 | 6 14 15 Most Carried 15 | 7 15 15 Average Carried 13 | 4 13 14 Final Capacity 15 | 8 15 15 Final Carried 15 | 7 15 14 Class Distribution -------------------- 100% | Mutant Dominant Class ---------------- Mutant | -10/Materials Mutant | -10/Subcaves Resources | -11 -10 -10 ----------- Run | Yrd Mat Sub Matter Collected 473 | 237 201 35 Remotely . | . . . Salvage Created 730 | 26 614 90 Parts 40 | 6 24 10 Haulers Intercepted . | . . . Recyclers Shooed . | . . . Parts Field Recycled . | . . . Retrieved Matter . | . . . Parts Self-Destructed 13 | . . 13 Prevented . | . . . Kills | -11 -10 -10 ------- Run | Yrd Mat Sub Combat Hostiles Destroyed 17 | . 13 4 Melee 4 | . 4 . Guns 11 | . 7 4 Classes Destroyed 5 | 1 2 2 Tunneler 1 | 1 . . Recycler 1 | . 1 . Swarmer 3 | . . 3 Grunt 13 | . 13 . Subdweller 1 | . . 1 Best Kill Streak 4 | 1 4 3 Combat Bots Only 3 | . 3 3 Max Kills in Single Turn 1 | 1 1 1 Gunslinging . | . . . Exploded . | . . . Melee 1 | . 1 . Uniques/NPCs Destroyed . | . . . Combat | -11 -10 -10 -------- Run | Yrd Mat Sub Hostile Shots Fired 84 | . 60 24 Missed 18 | . 13 5 Hits 66 | . 47 19 Projectile 66 | . 47 19 AOE 4 | . . 4 Damage Taken 982 | . 573 409 Core 257 | . 150 107 Absorbed by Shields . | . . . Redirected to Shielding 15 | . 12 3 Core Remaining (%) 100 | 100 . . Volleys Fired 41 | 6 26 9 Largest 2 | 2 2 2 Hottest 70 | 70 70 40 Shots Fired 81 | 12 51 18 Gun 81 | 12 51 18 Cannon . | . . . Launcher . | . . . Special . | . . . Kinetic 50 | 6 26 18 Thermal 31 | 6 25 . Explosive . | . . . Electromagnetic . | . . . Robot Hit Streak 16 | 4 16 8 Robot Miss Streak 3 | 2 3 1 Penetration Max . | . . . Secondary Targets 4 | . 2 2 Max Gunslinging Chain 1 | . 1 1 Shots Hit Robots 68 | 7 49 12 Core Hits 31 | 3 20 8 Critical Kills 2 | . 2 . Critical Parts Destroyed 2 | . 2 . Critical Strikes 5 | . 5 . Burn 1 | . 1 . Smash 4 | . 4 . Melee Attacks 21 | . 21 . Impact 21 | . 21 . Slashing . | . . . Piercing . | . . . Sneak Attacks 1 | . 1 . Combat Hostiles . | . . . Follow-up Attacks 3 | . 3 . Damage Inflicted 1139 | 71 963 105 Guns 596 | 71 420 105 Cannons . | . . . Explosions . | . . . Melee 537 | . 537 . Ramming 6 | . 6 . Kinetic 261 | 34 122 105 Thermal 335 | 37 298 . Explosive . | . . . Electromagnetic . | . . . Impact 537 | . 537 . Slashing . | . . . Piercing . | . . . Highest Corruption . | . . . Average Corruption . | . . . Corruption Purged . | . . . Corruption Blocked . | . . . Overload Shots . | . . . Overflow Damage 110 | . 110 . Projectiles . | . . . Explosions . | . . . Melee 110 | . 110 . Knockbacks 4 | . 4 . Impact 3 | . 3 . Kinetic . | . . . Secondary 1 | . 1 . Self-Inflicted Damage . | . . . Shots . | . . . Rammed 3 | . 3 . Targets Rammed 3 | . 3 . Kicked . | . . . Crushed . | . . . Highest Temperature 226 | 70 226 . Average Temperature 71 | 30 79 . Received Heat Transfer 309 | . 309 . Siege Activations . | . . . Martial Activations . | . . . Shielding Activations . | . . . Robots Disrupted . | . . . Combat Hostiles . | . . . Robots Corrupted 3 | . 3 . Combat Hostiles 2 | . 2 . Parts Fried 2 | . 2 . Impact Corruptions 4 | . 4 . Robots Melted . | . . . Combat Hostiles . | . . . Parts Melted 2 | . 2 . Heat Transferred 1073 | 111 962 . Parts Sabotaged . | . . . Parts Stolen . | . . . Parts Stripped . | . . . Power Chain Reactions . | . . . Alert | -11 -10 -10 ------- Run | Yrd Mat Sub Maximum Alert Level . | . . . Low Security (%) 100 | 100 100 . Level 1 . | . . . Level 2 . | . . . Level 3 . | . . . Level 4 . | . . . Level 5 . | . . . High Security . | . . . Max Security . | . . . Peak Influence 97 | 5 97 . Initial . | . . . Average 31 | . 34 . Influence Increases 480 | 5 405 70 Destroy 0b10 Robot/C 320 | . 260 60 Destroy 0b10 Robot/NC 10 | 5 5 . Destroy Leader 70 | . 60 10 Successful Hack 4 | . 4 . Select Force Hacks 60 | . 60 . Destroy Structure 1 | . 1 . Lose Combat Pursuer 15 | . 15 . Influence Decreases 440 | 5 345 90 Entered New Map 29 | . . 29 Time Decay 390 | 5 335 50 Lost Part 21 | . 10 11 Squads Dispatched 3 | . 3 . Investigation 3 | . 3 . Extermination . | . . . Reinforcement . | . . . Assault . | . . . Garrison . | . . . Intercept . | . . . Searches Triggered . | . . . Construction Impeded . | . . . Haulers Reinforced . | . . . Active Scanning Responses . | . . . Cargo Convoy Interrupts . | . . . Stealth | -11 -10 -10 --------- Run | Yrd Mat Sub Distress Signals 2 | . 2 . Communications Jammed . | . . . Distress Signals . | . . . Times Spotted 31 | . 26 5 Peak Tracking Total 3 | . 3 3 Tactical Retreats 2 | . 2 . Traps | -11 -10 -10 ------- Run | Yrd Mat Sub Traps Triggered 3 | . 3 . Indirectly . | . . . Trap Hack Attempts . | . . . Triggered . | . . . Disarmed . | . . . Reprogrammed . | . . . Reused . | . . . Traps Extracted . | . . . Installed . | . . . Triggered . | . . . Machines | -11 -10 -10 ---------- Run | Yrd Mat Sub Machines Disabled . | . . . Max in Single Turn . | . . . Machines Repaired . | . . . Machines Dismantled . | . . . Machines Sabotaged . | . . . Overloaded Fab Kills . | . . . Hacking | -11 -10 -10 --------- Run | Yrd Mat Sub Machines Accessed 8 | . 8 . Terminals 6 | . 6 . Fabricators . | . . . Repair Stations . | . . . Recycling Units 2 | . 2 . Scanalyzers . | . . . Garrison Access . | . . . Total Hacks 20 | . 20 . Successful 11 | . 11 . Failed 8 | . 8 . Catastrophic 1 | . 1 . Database Lockouts 1 | . 1 . Manual 19 | . 19 . Terminals 18 | . 18 . Fabricators . | . . . Repair Stations . | . . . Recycling Units 2 | . 2 . Scanalyzers . | . . . Garrison Access . | . . . Terminal Hacks 2 | . 2 . Robot Analysis 1 | . 1 . Locate Traps 1 | . 1 . Fabricator Hacks . | . . . Repair Station Hacks . | . . . Recycling Unit Hacks . | . . . Scanalyzer . | . . . Garrison Access Hacks . | . . . Unauthorized Hacks 9 | . 9 . Terminals 7 | . 7 . Botnet 2 | . 2 . Skim 5 | . 5 . Fabricators . | . . . Repair Stations . | . . . Recycling Units 2 | . 2 . Tunnel 2 | . 2 . Scanalyzers . | . . . Garrison Access . | . . . Data Cores Recovered . | . . . Used . | . . . Hacking Detections 6 | . 6 . Full Trace Events . | . . . Feedback Events . | . . . Feedback Blocked . | . . . Robot Schematics Acquired . | . . . Robots Built . | . . . Authchips . | . . . Time . | . . . Total Robot Build Rating . | . . . Part Schematics Acquired . | . . . Parts Built . | . . . Authchips . | . . . Time . | . . . Total Part Build Rating . | . . . Parts Repaired . | . . . Time . | . . . Parts Recycled . | . . . Recycled Matter . | . . . Retrieved Matter . | . . . Retrieved Components . | . . . Parts Scanalyzed . | . . . Part Schematics Acquired . | . . . Parts Damaged . | . . . Bothacking | -11 -10 -10 ------------ Run | Yrd Mat Sub Used RIF Installer . | . . . Robots Hacked . | . . . Non-combat . | . . . Combat . | . . . Robot Hacks Applied . | . . . Relay Couplers Released . | . . . Fabnet Peak Effective % . | . . . Robots Rewired . | . . . Allies Hacked . | . . . Hacks Repelled . | . . . Allies | -11 -10 -10 -------- Run | Yrd Mat Sub Total Allies . | . . . Largest Group . | . . . Highest-Rated Group . | . . . Highest-Rated Ally . | . . . Total Orders . | . . . Ally Attacks . | . . . Total Damage . | . . . Kills . | . . . Allies Corrupted . | . . . Allies Melted . | . . . Intel | -11 -10 -10 ------- Run | Yrd Mat Sub Active Infowar (turns) 84 | 36 48 . Seismic 84 | 36 48 . Robot Analysis Total 1 | . 1 . Derelict Logs Recovered . | . . . Drone Launches . | . . . Drone Recoveries . | . . . Exploration | -11 -10 -10 ------------- Run | Yrd Mat Sub Turns Passed 1535 | 128 1292 115 Spaces Moved 754 | 63 636 55 Core 6 | 6 . . Treads 748 | 57 636 55 Legs . | . . . Wheels . | . . . Hover . | . . . Flight . | . . . Fastest Speed 50 | 50 160 160 Average Speed 159 | 149 160 160 Slowest Speed 240 | 160 240 160 Overloaded Moves . | . . . Propulsion Burnouts . | . . . Robots Hopped . | . . . Potential Cave-ins . | . . . Cave-ins Triggered . | . . . Exploration Rate (%) 34 | 5 93 5 Regions Visited 2 Branch Regions 1 Pre-discovered Areas 2 | . 2 . Known Exits Taken . | . . . Unknown Exits Taken 2 | 1 1 . Scrap Searched . | . . . Spaces Dug 1 | . 1 . Terrain Destroyed 1 | . 1 . Melee 1 | . 1 . Projectile . | . . . AOE . | . . . Terrain Rammed . | . . . Walls Destroyed . | . . . Machines Disabled . | . . . Actions | -11 -10 -10 --------- Run | Yrd Mat Sub Total 986 | 84 833 69 Wait 114 | . 114 . Move 752 | 62 635 55 Hop . | . . . Pick Up 25 | 9 15 1 Fast Attach 10 | 5 5 . Attach 7 | 2 4 1 Detach 2 | . 2 . Swap 8 | . 6 2 Drop 8 | . 7 1 Fire 41 | 6 26 9 Melee 16 | . 16 . Ram . | . . . Kick . | . . . Crush 3 | . 3 . Escape Stasis . | . . . Rewire . | . . . Trap . | . . . Miscellaneous . | . . . Route ------- -11/Scrapyard -10/Materials (discovered 5 exits: [*Mat x3] / [*Min] / [*Sub]) -10/Subcaves (discovered 3 exits: Mat / Rec / [*Scr]) History --------- Turn | Location | Event 5 | -11/Scrapyard | Discovered new exit (range 15) 129 | -11/Scrapyard | Entered Materials 309 | -10/Materials | Build established: Mutant 373 | -10/Materials | Discovered new exit (range 11) 489 | -10/Materials | Discovered new exit (range 16) 593 | -10/Materials | Discovered new exit (range 16) 826 | -10/Materials | Central database locked down 869 | -10/Materials | Discovered new exit (range 8) 895 | -10/Materials | Learned 2 Storage zone layouts 926 | -10/Materials | Loaded intel: 20 trap records 948 | -10/Materials | Learned Storage stockpile data 959 | -10/Materials | Loaded intel: 8 terminal locations 961 | -10/Materials | Learned location of 2 exits from Subcaves 964 | -10/Materials | Learned location of 1 exit from Storage 978 | -10/Materials | Learned Storage security intel 1129 | -10/Materials | Derelicts attacked the area 1258 | -10/Materials | Core integrity fell below 50% 1406 | -10/Materials | Discovered new exit (range 9) 1421 | -10/Materials | Entered Subcaves 1422 | -10/Subcaves | Approached by a straggling Scientist 1422 | -10/Subcaves | Identified exit to Recycling 1422 | -10/Subcaves | Identified exit to Materials 1528 | -10/Subcaves | Scientist uncovered a shortcut to Scraptown 1529 | -10/Subcaves | Core integrity fell below 20% 1536 | -10/Subcaves | Destroyed by YF-INJ(R) with Subdweller Machine Gun Last Messages --------------- 01500_ Subatomizers dissect the Lgt. Assault Rifle. 01501_ Dropped Flail. 01503_ Acquired Lgt. Assault Rifle. 01506_ Lgt. Assault Rifle fries itself beyond repair. 01510_ Lgt. Ion Engine fries itself beyond repair. 01515_ Subatomizers dissect the Flail. 01517_ Acquired 14 matter. B2-EXF(c): "We're getting close, I can feel it." 01523_ Acquired 3 matter. 01525_ GU-3FJ(O) collects matter. 01528_ B2-EXF(c): "Hah, right again, there it is!" 01528_ B2-EXF(c) destroyed. 01530_ Subatomizers dissect the Flail. 01534_ Imp. Treads destroyed. 01536_ QS-X69(R) destroyed. 01536_ Switching to secondary target: YF-INJ(R). Map ----- +----------------------------------------------------+ | ?????????????????????????????????????????????????? | | ?????????????????????????????????????????????????? | | ?????????????????????????????????????????????????? | | ?????????????????????????????????????????????????? | | ?????????????????????????????????????????????????? | | ?????????????????????????????????????????????????? | | ?????????????????????????????????????????????????? | | ?????????????????????????????????????????????????? | | ?????????????????????????????????????????????????? | | ?????????????????????????????????????????????????? | | ?????????????????????????????????????????????????? | | ?????????????????????????????????????????????????? | | ??????????????? ????????????????????????????????? | | ??????????????# ???????????????????????????????? | | ?????????????? #?##????????????????????????????? | | ??????????????# #?# ##??????????????????????????? | | ?????????????? #?# ??????###?????????????????? | | ?????????????## ###O ?????# ##????????????????? | | ????????????## ##??? ##???????????????? | | ???????????? > #### % #?#?????????????? | | ????????????? # ### ??????????? | | ?????????????? #?# % "?????????? | | ?????????????## ### R !* ????????????? | | ??# ?????????# ## %!%#???????????????? | | ??# ?????#### #### #????????????????? | | ?## #??## # @ #?????????????????? | | ?# ## #?????????????????? | | ?# #????????????????? | | ??# % %/ # # #????????????????? | | ## ###### #??????????????? | | ### ????## ##????## ## ## ##??????????????? | | ??????????## #?????# ##?##?####???????????????? | | ??????????# #?????####????????????????????????? | | ??????????## #?????????????????????????????????? | | ??????????# #?????????????????????????????????? | | ??????????# #?????????????????????????????????? | | ??????????## ##?????????????????????????????????? | | ???????????# ###????????????????????????????????? | | ???????????### #????????????????????????????????? | | ????????????## ##????????????????????????????????? | | ???????????## ##?????????????????????????????????? | | ??????????## ##??????????????????????????????????? | | ?????????## ##???????????????????????????????????? | | ????????## ##????????????????????????????????????? | | ????#####"##?????????????????????????????????????? | | ????# ## ##??????????????????????????????????????? | | ????# # ##???????????????????????????????????????? | | ????## ##????????????????????????????????????????? | | ?????# #######???????????????????????????????????? | | ?????# # # ####????????????????????????????????? | +----------------------------------------------------+ Best States ------------- Heat Dissipation 25 Energy Generation 14 Energy Capacity 160 Matter Stores 300 Matter Capacity 300 Sight Range 16 Terrain Scan Density 10 Weapon Shielding 33 Evasion (%) 40 Recoil Reduction 2 Item Schematics ----------------- None Robot Schematics ------------------ None Fabricated ------------ Nothing Repaired ---------- Nothing Alien Tech Used ----------------- None Achievements -------------- None Challenges ------------ None Game ------ Seed WeaponGhostShredder Manual? 0 Play Time 00:10:34 Cumulative 619.1 hours Start 2025.05.25 @ 00:55:02 End 2025.05.25 @ 01:04:52 Sessions 1 Manual Loads 0 Difficulty Rogue Special Mode None Game No. 139 Rogue 139 Adventurer 0 Explorer 0 Win Type - Total 37 Types 10/5/7/1/1/1/8/2/1/1 Lore% 68 Gallery% 83 Achievement% 79 Wizard Run 0 Options --------- Layout 1 ASCII 0 Keyboard 0 Movement Mouse Keybinds 0 Fullscreen 2 Font 24/Smallcaps Map View 50x35 Zoom Use 0% Tactical HUD 1 Map Filters NONE Filters NONE Steam 1 RUN: 17ab4733-ef3c-4396-bc9d-b7c5a3a7b41e